[Event "Mitropa Cup Women 2024"]
[Site "Apolda"]
[Date "2024.02.23"]
[Round "9.12"]
[White "Mihaljevic, Eva"]
[Black "Deak-Sala, Emilia"]
[Result "0-1"]
[ECO "B38"]
[WhiteElo "2043"]
[BlackElo "1843"]
[Annotator "NA RC"]
[PlyCount "78"]
[EventDate "2024.02.15"]
[EventType "team-tourn"]
[EventCountry "GER"]
[SourceTitle "playchess.com"]
[Source "ChessBase"]
[SourceQuality "1"]
[WhiteTeam "Croatia"]
[BlackTeam "Austria"]
[WhiteTeamCountry "CRO"]
[BlackTeamCountry "AUT"]
[TimeControl "40/5400+30:1800+30"]

1. e4 {[%emt 0:00:01]} c5 {[%emt 0:00:03]} 2. Nf3 {[%emt 0:00:06]} Nc6 {[%emt 0:00:04]} 3. d4 {[%emt 0:00:09]} cxd4 {[%emt 0:00:03]} 4. Nxd4 {[%emt 0:00:09]} g6 {[%emt 0:00:03]} 5. c4 {[%emt 0:00:15]} Bg7 {[%emt 0:00:03]} 6. Be3 {[%emt 0:00:11]} Qb6 {[%emt 0:00:18]} 7. Nb3 {[%emt 0:00:49]} Qd8 {[%emt 0:00:05]} 8. Nc3 {[%emt 0:00:55]} Bxc3+ {[%emt 0:00:04]} 9. bxc3 {[%emt 0:00:06]} Nf6 {[%emt 0:00:04]} 10. f3 {[%emt 0:04:11]} O-O {[%emt 0:00:09]} 11. Bh6 {[%emt 0:06:30]} Re8 {[%emt 0:00:42]} 12. Be2 {[%emt 0:01:53]} d6 {[%emt 0:03:18]} 13. Qd2 {[%emt 0:01:09]} b6 {[%emt 0:00:44]} 14. h4 {[%emt 0:17:04]} Be6 {[%emt 0:05:45]} 15. h5 {[%emt 0:07:07]} Ne5 {[%emt 0:03:40]} 16. hxg6 {[%emt 0:00:46]} fxg6 {[%emt 0:00:08]} 17. Qf4 {[%emt 0:05:31]} Bxc4 {[%emt 0:06:35]} 18. Bxc4+ {[%emt 0:05:05]} Nxc4 {[%emt 0:00:06]} 19. Qh4 {[%emt 0:01:45]} Ne5 {[%emt 0:06:03]} 20. Bg5 {[%emt 0:12:18]} Qc7 {[%emt 0:02:30]} 21. Kf2 {[%emt 0:10:52]} Rf8 {[%emt 0:04:54]} 22. Bxf6 {[%emt 0:03:23]} exf6 {[%emt 0:00:11]} 23. Rad1 {[%emt 0:00:54]} Rf7 {[%emt 0:01:30]} 24. f4 {[%emt 0:02:04]} Nd7 {[%emt 0:10:25]} 25. Rd4 {[%emt 0:01:07]} Nc5 {[%emt 0:06:57]} 26. Rhd1 {[%emt 0:06:52]} Re8 {[%emt 0:06:00]} 27. Nd2 {[%emt 0:02:00]} Ne6 {[%emt 0:13:57]} 28. Rc4 {[%emt 0:03:12]} Qb7 {[%emt 0:00:08]} 29. Qg3 {[%emt 0:05:06]} b5 {[%emt 0:03:01]} 30. Rb4 {[%emt 0:00:56]} a5 {[%emt 0:00:07]} 31. Rb2 {[%emt 0:00:54]} Nc5 {[%emt 0:05:25]} 32. Re1 {[%emt 0:01:25]} Rfe7 {[%emt 0:00:48]} 33. f5 {[%emt 0:01:13]} Nxe4+ {[%emt 0:01:59]} 34. Nxe4 {[%emt 0:00:06]} Rxe4 {[%emt 0:00:06]} 35. Reb1 {[%emt 0:00:29]} Qa7+ {[%emt 0:05:07]} 36. Kf1 {[%emt 0:00:15]} g5 {[%emt 0:00:07]} 37. Rf2 {[%emt 0:01:00]} Rh4 {[%emt 0:03:31]} 38. Kg1 {[%emt 0:00:51]} Re2 {[%emt 0:00:19]} 39. Rbf1 {[%emt 0:00:47]} Rf4 {[%emt 0:00:13]} 0-1

[Event "Mitropa Cup Women 2024"]
[Site "Apolda"]
[Date "2024.02.23"]
[Round "9.13"]
[White "Hakimifard, Ghazal"]
[Black "Hagarova, Zuzana"]
[Result "1/2-1/2"]
[ECO "C07"]
[WhiteElo "2243"]
[BlackElo "2280"]
[Annotator "TA"]
[PlyCount "84"]
[EventDate "2024.02.15"]
[EventType "team-tourn"]
[EventCountry "GER"]
[SourceTitle "playchess.com"]
[Source "ChessBase"]
[SourceQuality "1"]
[WhiteTeam "Switzerland"]
[BlackTeam "Slovakia"]
[WhiteTeamCountry "SUI"]
[BlackTeamCountry "SVK"]
[TimeControl "40/5400+30:1800+30"]

{[%evp 14,84,21,18,14,20,28,17,23,6,42,33,79,79,139,97,103,51,164,178,163,179,176,180,173,168,211,212,222,169,165,74,227,219,222,214,178,103,93,77,68,49,53,0,0,0,0,0,0,0,0,0,0,0,0,0,0,0,0,0,0,0,0,0,0,0,0,0,0,0,0,0,0]} 1. e4 {[%emt 0:00:03]} e6 {[%emt 0:00:05]} 2. d4 {[%emt 0:00:06]} d5 {[%emt 0:00:03]} 3. Nd2 {[%emt 0:00:08]} a6 {[%emt 0:00:09]} 4. Bd3 {[%emt 0:01:23]} c5 {[%emt 0:01:04]} 5. dxc5 {[%emt 0:01:47]} Nf6 {[%emt 0:03:16]} 6. Qe2 {[%emt 0:01:19]} Nc6 {[%emt 0:04:08]} 7. Ngf3 {[%emt 0:00:05]} Bxc5 {[%emt 0:03:57]} 8. O-O {[%emt 0:00:28]} Nb4 {[%emt 0:04:49]} 9. e5 {[%emt 0:00:56]} Nd7 {[%emt 0:05:22]} 10. Nb3 {[%emt 0:00:23]} Be7 {[%emt 0:06:29]} 11. Nfd4 {[%emt 0:02:42]} Qc7 {[%emt 0:03:16]} 12. f4 {[%emt 0:03:45]} Nb6 {[%emt 0:28:09]} (12... Nc5 $14) 13. f5 $16 {[%emt 0:16:07]} Nc4 {[%emt 0:22:19]} (13... g6 $142) 14. fxe6 {[%emt 0:04:06]} Bxe6 {[%emt 0:00:22]} 15. a3 {[%emt 0:13:03]} (15. Nxe6 fxe6 16. Qh5+ g6 (16... Kd7 17. Bxc4 dxc4 18. Nd4 $16) 17. Bxg6+ Kd7 $14) (15. Bf5 $1 $16 {Droht stark c3.} Qxe5 16. Bxe6 fxe6 17. Qxe5 Nxe5 18. a3 (18. Nxe6 Nxc2 19. Rb1 Kd7 $11)) 15... Nxd3 {[%emt 0:06:09]} (15... Nc6 $1 $14) 16. cxd3 $18 {[%emt 0:00:21]} Na5 {[%emt 0:00:11]} 17. Nxe6 {[%emt 0:04:30]} fxe6 {[%emt 0:00:05]} 18. Nxa5 {[%emt 0:02:08]} Qxa5 {[%emt 0:00:07]} 19. Be3 {[%emt 0:00:15] Droht Qg4 und aus.} g6 {[%emt 0:06:05]} 20. Qg4 {[%emt 0:04:17]} Kd7 {[%emt 0:00:31]} 21. Rf7 {[%emt 0:01:03]} Raf8 {[%emt 0:00:25] Schwarz hat schwache schwarze Felder} 22. b4 {[%emt 0:05:18]} (22. Rg7 $1 $18 {bietet bessere Gewinnchancen.} Rfg8 23. Rf7) 22... Qb5 $2 {[%emt 0:00:26] [#]} (22... Qd8 $16 {ist wohl besser.} 23. Rg7 Rfg8) 23. Rg7 $1 {[%emt 0:06:54]} Rfg8 {[%emt 0:00:28] [#]} 24. Rxe7+ {[%emt 0:11:58][%mdl 512]} Kxe7 {[%emt 0:00:07]} 25. Rf1 {[%emt 0:01:07]} ({Günstiger ist} 25. Bc5+ $18 Kd7 26. Qf4) 25... Rg7 $16 {[%emt 0:01:36][%cal Oe7d7]} 26. Qg5+ {[%emt 0:05:13][%mdl 1024] Weiss hat starke Kompensation.} Kd7 {[%emt 0:00:21]} 27. Qf6 {[%emt 0:01:44] Weiß steht aktiver.} Rhg8 {[%emt 0:00:15]} 28. Bh6 {[%emt 0:02:53]} (28. Bc5 $1 $14 h5 (28... Qxd3 $2 29. Bf8 $18) 29. Rc1) 28... Re7 $11 {[%emt 0:00:19] Die Stellung ist ausgeglichen.} 29. Bf8 {[%emt 0:00:44]} Rxf8 $1 {[%emt 0:00:47]} 30. Qxf8 {[%emt 0:00:02]} Qxd3 {[%emt 0:02:12][%mdl 4096] Endspiel. KQR-KQR} 31. Qb8 {[%emt 0:00:13]} Qe3+ {[%emt 0:00:18]} 32. Kh1 {[%emt 0:00:09]} Qb6 {[%emt 0:00:22]} 33. a4 {[%emt 0:03:40]} Qc7 {[%emt 0:00:28]} (33... Qxb4 $2 34. Rc1 $18) 34. Qa7 {[%emt 0:00:23]} Ke8 {[%emt 0:01:16][%cal Oe7f7]} (34... Qxe5 35. Qxb7+ Qc7 36. Qxa6 $16) 35. Qa8+ {[%emt 0:01:16]} Kd7 $1 {[%emt 0:00:04]} 36. h3 {[%emt 0:00:36]} Qc8 {[%emt 0:00:20]} (36... Qxe5 $2 {zu gefräßig.} 37. Rc1 $18 (37. Qxb7+ Qc7 $18) (37. Qxb7+ Qc7 $18)) 37. Qa7 {[%emt 0:00:06]} Ke8 {[%emt 0:00:22]} 38. Qf2 {[%emt 0:02:39]} Qc4 {[%emt 0:00:23]} 39. b5 {[%emt 0:01:37]} a5 {[%emt 0:02:12]} (39... Qxa4 $2 {verliert.} 40. Qf8+ Kd7 41. Rc1 $18) 40. Qf8+ {[%emt 0:03:45]} Kd7 {[%emt 0:00:04]} 41. b6 {[%emt 0:03:40]} Qc6 {[%emt 0:08:42]} 42. Rf7 {[%emt 0:12:04]} Rxf7 {[%emt 0:23:27] Schwarz hat sich erfolgreich gewehrt.   Gewichteter Fehlerwert: Weiß=0.13 (sehr präzise) /Schwarz=0.14 (sehr präzise) .  Fehler:       	Weiß=4     	Schwarz=4     Ungenau:       	Weiß=1     	Schwarz=1     OK:         	Weiß=15    	Schwarz=9     Bester:       	Weiß=2     	Schwarz=5     Stark:        	Weiß=1     	Schwarz=2     Brilliant:      	Weiß=1     	---} 1/2-1/2

[Event "Mitropa Cup Women 2024"]
[Site "Apolda"]
[Date "2024.02.23"]
[Round "9.14"]
[White "Walter, Ema"]
[Black "Hryzlova, Sofiia"]
[Result "1/2-1/2"]
[ECO "C07"]
[WhiteElo "2124"]
[BlackElo "2196"]
[Annotator "RC"]
[PlyCount "62"]
[EventDate "2024.02.15"]
[EventType "team-tourn"]
[EventCountry "GER"]
[SourceTitle "playchess.com"]
[Source "ChessBase"]
[SourceQuality "1"]
[WhiteTeam "Slovakia"]
[BlackTeam "Switzerland"]
[WhiteTeamCountry "SVK"]
[BlackTeamCountry "SUI"]
[TimeControl "40/5400+30:1800+30"]

1. e4 {[%emt 0:00:02]} e6 {[%emt 0:00:08]} 2. d4 {[%emt 0:00:06]} d5 {[%emt 0:00:06]} 3. Nd2 {[%emt 0:00:04]} c5 {[%emt 0:00:07]} 4. exd5 {[%emt 0:00:08]} Qxd5 {[%emt 0:00:05]} 5. Ngf3 {[%emt 0:00:05]} cxd4 {[%emt 0:00:07]} 6. Bc4 {[%emt 0:00:05]} Qd6 {[%emt 0:00:06]} 7. O-O {[%emt 0:00:06]} Nf6 {[%emt 0:00:09]} 8. Nb3 {[%emt 0:00:09]} Nc6 {[%emt 0:00:08]} 9. Nbxd4 {[%emt 0:00:10]} Nxd4 {[%emt 0:00:06]} 10. Nxd4 {[%emt 0:00:09]} Be7 {[%emt 0:00:21]} 11. Re1 {[%emt 0:07:26]} O-O {[%emt 0:00:23]} 12. c3 {[%emt 0:02:33]} Qc7 {[%emt 0:05:51]} 13. Bf1 {[%emt 0:08:44]} b6 {[%emt 0:06:14]} 14. g3 {[%emt 0:02:58]} Bb7 {[%emt 0:03:14]} 15. Bf4 {[%emt 0:04:29]} Bd6 {[%emt 0:08:02]} 16. Bxd6 {[%emt 0:05:48]} Qxd6 {[%emt 0:00:08]} 17. Bg2 {[%emt 0:00:08]} Bxg2 {[%emt 0:08:07]} 18. Kxg2 {[%emt 0:00:14]} Rad8 {[%emt 0:00:41]} 19. Qf3 {[%emt 0:02:24]} Qd5 {[%emt 0:12:07]} 20. Nc6 {[%emt 0:10:38]} Qxf3+ {[%emt 0:07:22]} 21. Kxf3 {[%emt 0:00:05]} Rd2 {[%emt 0:00:09]} 22. b4 {[%emt 0:10:13]} g5 {[%emt 0:09:36]} 23. c4 {[%emt 0:09:24]} Kg7 {[%emt 0:05:10]} 24. Red1 {[%emt 0:08:00]} Rb2 {[%emt 0:00:39]} 25. b5 {[%emt 0:02:22]} h5 {[%emt 0:01:25]} 26. Rdb1 {[%emt 0:07:21]} Rc2 {[%emt 0:00:55]} 27. Rc1 {[%emt 0:00:05]} Rb2 {[%emt 0:00:47]} 28. Rcb1 {[%emt 0:00:56]} Rc2 {[%emt 0:01:06]} 29. Rc1 {[%emt 0:00:03]} Rb2 {[%emt 0:00:06]} 30. Rcb1 {[%emt 0:00:06]} Rc2 {[%emt 0:00:19]} 31. Rc1 {[%emt 0:00:45]} Rb2 {[%emt 0:00:12]} 1/2-1/2

[Event "Mitropa Cup Women 2024"]
[Site "Apolda"]
[Date "2024.02.23"]
[Round "9.15"]
[White "Manko, Mariia"]
[Black "Sankova, Stella"]
[Result "1-0"]
[ECO "E11"]
[WhiteElo "2128"]
[BlackElo "2124"]
[Annotator "RC"]
[PlyCount "79"]
[EventDate "2024.02.15"]
[EventType "team-tourn"]
[EventCountry "GER"]
[SourceTitle "playchess.com"]
[Source "ChessBase"]
[SourceQuality "1"]
[WhiteTeam "Switzerland"]
[BlackTeam "Slovakia"]
[WhiteTeamCountry "SUI"]
[BlackTeamCountry "SVK"]
[TimeControl "40/5400+30:1800+30"]

1. d4 {[%emt 0:00:02]} Nf6 {[%emt 0:00:05]} 2. c4 {[%emt 0:00:07]} e6 {[%emt 0:00:04]} 3. g3 {[%emt 0:00:05]} d5 {[%emt 0:00:05]} 4. Bg2 {[%emt 0:00:05]} Bb4+ {[%emt 0:00:16]} 5. Bd2 {[%emt 0:00:13]} Be7 {[%emt 0:00:06]} 6. Nf3 {[%emt 0:00:22]} c6 {[%emt 0:00:45]} 7. Qc2 {[%emt 0:01:02]} b6 {[%emt 0:00:05]} 8. O-O {[%emt 0:00:55]} Ba6 {[%emt 0:00:14]} 9. cxd5 {[%emt 0:06:58]} cxd5 {[%emt 0:00:11]} 10. Nc3 {[%emt 0:00:17]} O-O {[%emt 0:03:29]} 11. Ne5 {[%emt 0:00:27]} Bb7 {[%emt 0:03:08]} 12. Qa4 {[%emt 0:00:59]} Nfd7 {[%emt 0:04:02]} 13. Nd3 {[%emt 0:00:23]} Nc6 {[%emt 0:08:55]} 14. Rfc1 {[%emt 0:00:22]} Rc8 {[%emt 0:01:08]} 15. e3 {[%emt 0:00:10]} a6 {[%emt 0:07:51]} 16. b4 {[%emt 0:06:08]} b5 {[%emt 0:14:10]} 17. Qb3 {[%emt 0:01:12]} Nb6 {[%emt 0:01:15]} 18. Nc5 {[%emt 0:02:31]} Bxc5 {[%emt 0:00:19]} 19. bxc5 {[%emt 0:03:11]} Nc4 {[%emt 0:00:05]} 20. Be1 {[%emt 0:01:19]} Qd7 {[%emt 0:07:30]} 21. Ne2 {[%emt 0:12:15]} Ne7 {[%emt 0:04:09]} 22. a4 {[%emt 0:02:22]} Bc6 {[%emt 0:02:12]} 23. axb5 {[%emt 0:01:22]} Bxb5 {[%emt 0:00:58]} 24. Nc3 {[%emt 0:07:52]} Ra8 {[%emt 0:01:58]} 25. Bf1 {[%emt 0:07:18]} g5 {[%emt 0:09:57]} 26. Na4 {[%emt 0:05:58]} Rfb8 {[%emt 0:03:58]} 27. Qd1 {[%emt 0:02:49]} Nc8 {[%emt 0:03:56]} 28. Nc3 {[%emt 0:01:50]} Kg7 {[%emt 0:03:32]} 29. h4 {[%emt 0:03:24]} Qe7 {[%emt 0:02:57]} 30. e4 {[%emt 0:06:19]} gxh4 {[%emt 0:11:11]} 31. Qg4+ {[%emt 0:08:53]} Kh8 {[%emt 0:00:01]} 32. exd5 {[%emt 0:00:42]} hxg3 {[%emt 0:01:31]} 33. Nxb5 {[%emt 0:02:03]} gxf2+ {[%emt 0:01:18]} 34. Bxf2 {[%emt 0:00:17]} axb5 {[%emt 0:01:05]} 35. Bh4 {[%emt 0:08:49]} f5 {[%emt 0:02:49]} 36. Bxe7 {[%emt 0:01:39]} fxg4 {[%emt 0:00:01]} 37. Bf6+ {[%emt 0:08:20]} Kg8 38. dxe6 {[%emt 0:00:00]} Rxa1 {[%emt 0:01:14]} 39. Rxa1 {[%emt 0:00:00]} Ne3 {[%emt 0:00:02]} 40. Be5 {[%emt 0:00:00]} 1-0

[Event "Mitropa Cup Women 2024"]
[Site "Apolda"]
[Date "2024.02.23"]
[Round "9.16"]
[White "Sekova, Olivia"]
[Black "Pellicoro, Nathalie"]
[Result "1-0"]
[ECO "E76"]
[WhiteElo "2054"]
[BlackElo "1905"]
[Annotator "NA RC"]
[PlyCount "51"]
[EventDate "2024.02.15"]
[EventType "team-tourn"]
[EventCountry "GER"]
[SourceTitle "playchess.com"]
[Source "ChessBase"]
[SourceQuality "1"]
[WhiteTeam "Slovakia"]
[BlackTeam "Switzerland"]
[WhiteTeamCountry "SVK"]
[BlackTeamCountry "SUI"]
[TimeControl "40/5400+30:1800+30"]

1. d4 {[%emt 0:00:04]} Nf6 {[%emt 0:00:07]} 2. c4 {[%emt 0:00:12]} c5 {[%emt 0:01:38]} 3. d5 {[%emt 0:00:06]} d6 {[%emt 0:00:21]} 4. Nc3 {[%emt 0:00:28]} g6 {[%emt 0:00:45]} 5. e4 {[%emt 0:00:37]} Bg7 {[%emt 0:00:12]} 6. f4 {[%emt 0:00:57]} O-O {[%emt 0:01:38]} 7. Nf3 {[%emt 0:01:30]} e6 {[%emt 0:01:02]} 8. Bd3 {[%emt 0:12:05]} Re8 {[%emt 0:02:59]} 9. O-O {[%emt 0:01:28]} exd5 {[%emt 0:12:26]} 10. exd5 {[%emt 0:04:57]} Na6 {[%emt 0:03:54]} 11. f5 {[%emt 0:05:00]} Nc7 {[%emt 0:10:15]} 12. a4 {[%emt 0:03:28]} Rb8 {[%emt 0:06:05]} 13. Bg5 {[%emt 0:02:23]} h6 {[%emt 0:06:23]} 14. Bxf6 {[%emt 0:13:28]} Qxf6 {[%emt 0:00:08]} 15. fxg6 {[%emt 0:00:12]} fxg6 {[%emt 0:01:22]} 16. Ne4 {[%emt 0:01:50]} Qd8 {[%emt 0:02:53]} 17. Qd2 {[%emt 0:01:29]} Bf5 {[%emt 0:04:11]} 18. Rae1 {[%emt 0:06:43]} b5 {[%emt 0:05:20]} 19. axb5 {[%emt 0:01:57]} a6 {[%emt 0:00:11]} 20. Ng3 {[%emt 0:02:03]} Bxd3 {[%emt 0:03:01]} 21. Qxd3 {[%emt 0:00:05]} Qf6 {[%emt 0:03:20]} 22. Ne5 {[%emt 0:01:23]} Qe7 {[%emt 0:14:49]} 23. Nc6 {[%emt 0:06:29]} Qxe1 {[%emt 0:00:08]} 24. Rxe1 {[%emt 0:00:03]} Rxe1+ {[%emt 0:00:09]} 25. Kf2 {[%emt 0:00:09]} Rbe8 {[%emt 0:00:11]} 26. b6 {[%emt 0:00:12]} 1-0

[Event "Mitropa Cup Women 2024"]
[Site "Apolda"]
[Date "2024.02.23"]
[Round "9.17"]
[White "Koubova, Anna Marie"]
[Black "Heinemann, Josefine"]
[Result "1/2-1/2"]
[ECO "B51"]
[WhiteElo "2100"]
[BlackElo "2361"]
[Annotator "TA"]
[PlyCount "60"]
[EventDate "2024.02.15"]
[EventType "team-tourn"]
[EventCountry "GER"]
[SourceTitle "playchess.com"]
[Source "ChessBase"]
[SourceQuality "1"]
[WhiteTeam "Czech Republic"]
[BlackTeam "Germany"]
[WhiteTeamCountry "CZE"]
[BlackTeamCountry "GER"]
[TimeControl "40/5400+30:1800+30"]

{[%evp 21,60,0,6,-13,0,-22,-15,-17,0,0,0,0,27,0,0,0,0,0,6,4,20,0,0,0,0,0,0,0,0,0,0,0,0,0,0,0,0,0,0,0,0]} 1. e4 {[%emt 0:00:08]} c5 {[%emt 0:00:06]} 2. Nf3 {[%emt 0:00:09]} d6 {[%emt 0:00:08]} 3. Bb5+ {[%emt 0:00:15]} Nd7 {[%emt 0:00:04]} 4. O-O {[%emt 0:00:18]} a6 {[%emt 0:00:05]} 5. Bxd7+ {[%emt 0:00:12]} Bxd7 {[%emt 0:00:05]} 6. d4 {[%emt 0:00:14]} cxd4 {[%emt 0:00:05]} 7. Qxd4 {[%emt 0:00:12]} Nf6 {[%emt 0:02:02]} 8. c4 {[%emt 0:00:58]} e6 {[%emt 0:06:47]} 9. Nc3 {[%emt 0:02:50]} Be7 {[%emt 0:01:00]} 10. Bg5 {[%emt 0:02:43]} Bc6 {[%emt 0:03:21]} 11. Rad1 {[%emt 0:05:50]} O-O {[%emt 0:03:45]} 12. Bh4 {[%emt 0:03:35]} Qa5 {[%emt 0:11:46]} 13. e5 {[%emt 0:18:20]} dxe5 {[%emt 0:00:36]} 14. Nxe5 {[%emt 0:00:35]} Rac8 {[%emt 0:07:20]} 15. Nxc6 {[%emt 0:14:31]} Rxc6 {[%emt 0:00:38]} 16. Ne4 {[%emt 0:01:58]} Qf5 {[%emt 0:03:22][%cal Of8c8]} 17. Nxf6+ {[%emt 0:02:13]} Bxf6 {[%emt 0:00:19] Die Stellung ist ausgeglichen.} 18. Bxf6 {[%emt 0:00:18]} Qxf6 {[%emt 0:00:05]} 19. b3 {[%emt 0:10:14]} Qxd4 {[%emt 0:07:15]} 20. Rxd4 $11 {[%emt 0:00:06][%mdl 4096] Endspiel. KRR-KRR} b5 {[%emt 0:00:06]} 21. cxb5 {[%emt 0:05:38]} axb5 {[%emt 0:00:03]} 22. Rfd1 {[%emt 0:00:33]} g6 {[%emt 0:01:31]} 23. g3 {[%emt 0:02:37]} Kg7 {[%emt 0:03:29]} 24. Rd7 {[%emt 0:04:26]} Rfc8 {[%emt 0:05:20]} 25. Rb7 {[%emt 0:04:46][%cal Od1d7] [#] Droht stark Rdd7!} Rc1 {[%emt 0:00:42]} 26. Rxc1 {[%emt 0:00:14]} Rxc1+ {[%emt 0:00:04]} 27. Kg2 {[%emt 0:00:08]} Rc2 {[%emt 0:01:28]} 28. Rxb5 {[%emt 0:00:21] Zielt auf a4 ab.} Rxa2 {[%emt 0:00:03]} 29. Rb8 {[%emt 0:02:01]} h5 {[%emt 0:00:37]} 30. h4 {[%emt 0:03:49]} Rb2 {[%emt 0:00:10] Ein ziemlich ruhiges Remis.   Gewichteter Fehlerwert: Weiß=0.07 (makellos) /Schwarz=0.07 (makellos) .  Ungenau:       	Weiß=1     	Schwarz=1     OK:         	Weiß=3     	Schwarz=5     Bester:       	Weiß=1     	---} 1/2-1/2

[Event "Mitropa Cup Women 2024"]
[Site "Apolda"]
[Date "2024.02.23"]
[Round "9.18"]
[White "Schneider, Jana"]
[Black "Lhotska, Anna"]
[Result "1-0"]
[ECO "B80"]
[WhiteElo "2331"]
[BlackElo "2053"]
[Annotator "TA"]
[PlyCount "53"]
[EventDate "2024.02.15"]
[EventType "team-tourn"]
[EventCountry "GER"]
[SourceTitle "playchess.com"]
[Source "ChessBase"]
[SourceQuality "1"]
[WhiteTeam "Germany"]
[BlackTeam "Czech Republic"]
[WhiteTeamCountry "GER"]
[BlackTeamCountry "CZE"]
[TimeControl "40/5400+30:1800+30"]

{[%evp 12,52,27,13,48,40,52,33,84,69,87,81,46,58,79,88,92,62,62,56,28,51,376,325,504,505,522,500,506,472,29987,29988,29988,29989,29989,29990,29993,29994,29997,29998,29998,29999,29999]} 1. e4 {[%emt 0:00:04]} c5 {[%emt 0:00:12]} 2. Nf3 {[%emt 0:00:09]} d6 {[%emt 0:00:05]} 3. d4 {[%emt 0:00:05]} cxd4 {[%emt 0:00:05]} 4. Nxd4 {[%emt 0:00:05]} Nf6 {[%emt 0:00:06]} 5. Nc3 {[%emt 0:00:07]} a6 {[%emt 0:00:07]} 6. Be3 {[%emt 0:00:09]} e6 {[%emt 0:00:28]} 7. Qf3 {[%emt 0:00:11]} Qc7 {[%emt 0:04:54]} 8. g4 {[%emt 0:02:39][%cal Bg2g4,Bg4g5][%mdl 32]} b5 {[%emt 0:02:07]} 9. a3 {[%emt 0:06:16]} Bb7 {[%emt 0:01:29]} (9... d5 $14) 10. g5 $16 {[%emt 0:03:07]} Nfd7 {[%emt 0:01:26]} 11. Qh3 {[%emt 0:01:02][%cal Og5g6] Black must now prevent g6! White is more active.} g6 {[%emt 0:14:26]} 12. O-O-O {[%emt 0:02:51]} Nc5 {[%emt 0:06:57] [#]} 13. Bg2 $1 {[%emt 0:03:29]} Nc6 {[%emt 0:06:55]} 14. f4 {[%emt 0:02:59][%cal Bf2f4,Bf4f5,Bf5g6][%mdl 32]} b4 {[%emt 0:02:56]} 15. axb4 {[%emt 0:09:32]} ({Reject} 15. Nxc6 $6 bxc3 16. Bxc5 cxb2+ 17. Kb1 dxc5 $11 (17... Bxc6 18. Qc3 $15)) 15... Nxb4 {[%emt 0:00:16]} 16. f5 {[%emt 0:00:37] aiming for fxg6.} e5 $2 {[%emt 0:09:14][%mdl 8192] [#] This move loses the game for Black.} (16... Bg7 $14) 17. fxg6 $1 $18 {[%emt 0:01:01]} fxg6 {[%emt 0:02:49]} (17... Rc8 $142 18. gxf7+ Qxf7) 18. Ne6 {[%emt 0:00:59]} Nxe6 {[%emt 0:00:58]} 19. Qxe6+ {[%emt 0:00:08]} Be7 {[%emt 0:05:05]} 20. Rhf1 {[%emt 0:01:35][%cal Od1d6] Hoping for Rxd6!} Qd7 {[%emt 0:11:24]} (20... Bc8 $18 21. Qf7+ Kd8 22. Rxd6+ Bxd6 (22... Qxd6 $2 {too greedy.} 23. Rd1 $18)) 21. Qf7+ {[%emt 0:01:52] White mates.} Kd8 {[%emt 0:00:06]} 22. Bb6+ {[%emt 0:03:20]} Kc8 {[%emt 0:00:04] [#]} 23. Bh3 $1 {[%emt 0:00:13][%mdl 512]} Qxh3 {[%emt 0:07:02]} (23... Bxg5+ 24. Kb1) 24. Qxe7 {[%emt 0:00:10][%csl Gb6][%cal Re7c7]} Qd7 {[%emt 0:02:56]} 25. Rf8+ {[%emt 0:00:09]} Rxf8 {[%emt 0:00:04]} 26. Qxf8+ {[%emt 0:00:05]} Qd8 {[%emt 0:00:05]} 27. Qxd8# {[%emt 1:01:06] Weighted Error Value: White=0.03 (flawless) /Black=0.69.  Loses game:     	---       	Black=1      Mistake:       	---       	Black=3      Inaccurate:     	White=1     	---        OK:         	White=4     	Black=6      Best:        	White=4     	---        Strong:       	White=2     	---} 1-0